bitfinex-derivatives/quotes_SOLF0:USTF0_20250216
["timestamp","ask_amount","ask_price","bid_price","bid_amount"]
[1739698670129,0.03400464,193.16,193.13,5.546e-05]
[1739698670630,5.21050464,193.16,193.13,5.546e-05]
[1739698670933,0.03400464,193.16,193.13,5.546e-05]
[1739698671233,0.03400464,193.16,193.13,5.17705546]
[1739698673027,5.21030464,193.16,193.13,5.17705546]
[1739698673727,5.21030464,193.16,193.13,5.546e-05]
[1739698674427,5.1766,193.15,193.13,5.546e-05]
[1739698678133,5.21030464,193.16,193.13,5.17705546]
[1739698678630,0.03400464,193.16,193.13,5.17705546]
[1739698679837,0.03400464,193.16,193.14,7.42287142]
[1739698680243,0.03400464,193.16,193.15,5.1765]
[1739698687441,0.03400464,193.16,193.14,12.59957142]
[1739698687638,0.03400464,193.16,193.14,7.42287142]
[1739698688240,0.03400464,193.16,193.15,5.1765]
[1739698689441,0.03400464,193.16,193.14,12.59957142]
[1739698689740,0.03400464,193.16,193.13,5.546e-05]
[1739698690440,0.03400464,193.16,193.13,5.17715546]
[1739698691942,0.03400464,193.16,193.14,5.1768]
[1739698692141,0.03400464,193.16,193.14,12.59967142]
[1739698692343,0.03400464,193.16,193.14,7.42287142]
[1739698693248,0.03400464,193.16,193.15,5.1765]
[1739698695646,5.1747,193.22,193.19,5.1754]
[1739698695839,53.64958186,193.23,193.19,7.42287142]
[1739698696747,53.68720245,193.23,193.19,7.4608966]
[1739698697044,58.86170245,193.23,193.2,5.1751]
[1739698697344,58.86170245,193.23,193.19,7.4608966]
[1739698697544,53.68720245,193.23,193.19,12.6360966]
[1739698697745,53.68720245,193.23,193.21,7.42287142]
[1739698699249,53.68720245,193.23,193.19,0.03802518]
[1739698699750,5.1752,193.2,193.19,0.03802518]
[1739698715258,5.1752,193.2,193.19,2.518e-05]
[1739698715453,12.59807142,193.2,193.19,2.518e-05]
[1739698715661,7.42287142,193.2,193.09,7.42287142]
[1739698715861,7.42287142,193.16,193.09,7.42287142]
[1739698716159,5.1768,193.14,193.09,12.60077142]
[1739698716368,5.1768,193.14,193.09,7.42287142]
[1739698716564,7.42287142,193.18,193.03,28.84719035]
[1739698716865,193.0,193.22,193.03,28.84719035]
[1739698716866,200.42287142,193.22,193.13,7.42287142]
[1739698717063,7.42287142,193.22,193.13,7.42287142]
[1739698717264,0.03572405,193.19,193.16,0.03867244]
[1739698718060,5.176,193.17,193.16,0.03867244]
[1739698720167,0.03572405,193.19,193.16,0.03867244]
[1739698720363,5.21142405,193.19,193.16,0.03867244]
[1739698720761,0.03572405,193.19,193.16,0.03867244]
[1739698721068,5.21122405,193.19,193.16,0.03867244]
[1739698721567,0.03572405,193.19,193.16,5.21487244]
[1739698722067,0.03572405,193.19,193.18,5.1757]
[1739698729069,0.03572405,193.19,193.17,7.42287142]
[1739698729373,0.03572405,193.19,193.17,12.59887142]
[1739698730274,0.03572405,193.19,193.17,7.42287142]
[1739698730468,0.03572405,193.19,193.18,5.1757]
[1739698740678,0.03572405,193.19,193.17,7.42287142]
[1739698740878,0.03572405,193.19,193.16,0.03867244]
[1739698741282,5.1757,193.18,193.16,0.03867244]
[1739698741479,0.03572405,193.19,193.16,0.03867244]
[1739698741783,0.03572405,193.19,193.17,7.42287142]
[1739698744284,5.21122405,193.19,193.17,7.42287142]
[1739698744680,0.03572405,193.19,193.17,7.42287142]
[1739698746687,0.03572405,193.19,193.18,5.1757]
[1739698746882,0.03572405,193.19,193.17,7.42287142]
[1739698752397,0.03572405,193.19,193.17,12.59887142]
[1739698753184,0.03572405,193.19,193.18,5.1757]
[1739698755591,0.03572405,193.19,193.16,0.03867244]
[1739698755992,5.1757,193.18,193.16,0.03867244]
[1739698758495,0.03572405,193.19,193.16,0.03867244]
[1739698758794,5.21122405,193.19,193.16,0.03867244]
[1739698759395,5.176,193.17,193.16,0.03867244]
[1739698762198,0.03572405,193.19,193.16,0.03867244]
[1739698762899,5.1757,193.18,193.16,0.03867244]
[1739698763100,0.03572405,193.19,193.16,0.03867244]
[1739698763399,5.176,193.17,193.16,0.03867244]
[1739698769500,5.21132405,193.19,193.16,5.21487244]
[1739698769703,0.03572405,193.19,193.16,5.21487244]
[1739698770503,0.03572405,193.19,193.16,0.03867244]
[1739698770796,7.42287142,193.18,193.16,7.244e-05]
[1739698771002,5.176,193.17,193.16,7.244e-05]
[1739698830847,7.42287142,193.18,193.06,7.42287142]
[1739698831052,7.42287142,193.13,193.05,5.1792]
[1739698831347,5.1777,193.11,193.05,5.1792]
[1739698831652,7.42287142,193.13,193.05,5.1792]
[1739698831852,7.42287142,193.13,193.05,12.60207142]
[1739698832049,0.03444375,193.11,193.07,0.03531158]
[1739698832249,5.1779,193.1,193.07,0.03531158]
[1739698833452,5.21204375,193.11,193.07,5.21391158]
[1739698834057,5.21204375,193.11,193.07,12.636783]
[1739698836445,0.03444375,193.11,193.07,7.458183]
[1739698837157,0.03444375,193.11,193.08,5.1782]
[1739698837359,0.03444375,193.11,193.07,7.458183]
[1739698837556,0.03444375,193.11,193.09,7.42287142]
[1739698837856,0.03444375,193.11,193.09,12.60087142]
[1739698839354,5.21204375,193.11,193.07,12.636783]
[1739698841966,0.03444375,193.11,193.08,5.1784]
[1739698842161,0.03444375,193.11,193.07,7.458183]
[1739698842957,0.03444375,193.11,193.09,5.1781]
[1739698843960,0.03444375,193.11,193.1,5.1779]
[1739698844457,0.03444375,193.11,193.09,7.42287142]
[1739698845358,0.03444375,193.11,193.1,5.1779]
[1739698866762,0.03444375,193.11,193.07,7.458183]
[1739698867465,0.03444375,193.11,193.09,5.1781]
[1739698868268,5.21204375,193.11,193.08,5.1784]
[1739698868569,0.03444375,193.11,193.07,0.03531158]
[1739698869674,5.1781,193.1,193.07,5.21381158]
[1739698870574,0.03444375,193.11,193.09,5.1779]
[1739698871280,0.03444375,193.11,193.09,12.60077142]
[1739698871469,0.03444375,193.11,193.1,5.1779]
[1739698878779,7.42287142,193.23,193.09,7.42287142]
[1739698878981,7.42287142,193.23,193.16,5.176]
[1739698879683,5.1754,193.2,193.16,5.176]
[1739698879880,5.1754,193.2,193.17,5.176]
[1739698880183,0.03986518,193.2,193.16,0.03806363]
[1739698880578,0.03986518,193.2,193.17,7.42287142]
[1739698881281,0.03986518,193.2,193.18,5.1757]
[1739698882580,0.03986518,193.2,193.19,5.1755]
[1739698883182,0.03986518,193.2,193.19,12.59837142]
[1739698892986,0.03986518,193.2,193.17,7.42287142]
[1739698893184,0.03986518,193.2,193.16,0.03806363]
[1739698893484,0.03986518,193.2,193.17,5.1758]
[1739698894290,0.03986518,193.2,193.17,5.1757]
[1739698894488,0.03986518,193.2,193.17,7.42287142]
[1739698894983,0.03986518,193.2,193.18,5.1756]
[1739698895185,0.03986518,193.2,193.17,7.42287142]
[1739698895379,0.03986518,193.2,193.19,7.42287142]
[1739698895584,0.03986518,193.2,193.19,12.59837142]
[1739698898089,53.63270927,193.29,193.22,5.1745]
[1739698898289,5.1733,193.28,193.23,7.42287142]
[1739698898491,53.63270927,193.29,193.23,7.42287142]
[1739698899087,5.1738,193.26,193.23,7.42287142]
[1739698899280,5.1738,193.26,193.24,0.03727894]
[1739698900591,5.1733,193.27,193.24,0.03727894]
[1739698900792,0.03629363,193.28,193.24,0.03727894]
[1739698901494,5.1738,193.25,193.24,0.03727894]
[1739698902093,5.1736,193.26,193.24,0.03727894]
[1739698902592,5.1734,193.27,193.24,0.03727894]
[1739698902794,5.1734,193.27,193.24,5.21127894]
[1739698903190,5.1734,193.27,193.25,7.42287142]
[1739698907498,0.03629363,193.28,193.25,7.42287142]
[1739698908493,5.20939363,193.28,193.25,12.59667142]
[1739698908795,0.03629363,193.28,193.25,7.42287142]
[1739698910093,5.1734,193.27,193.25,7.42287142]
[1739698914803,5.1734,193.27,193.24,0.03727894]
[1739698915302,0.03629363,193.28,193.24,0.03727894]
[1739698915904,5.1738,193.25,193.24,0.03727894]
[1739698921812,5.1736,193.26,193.24,0.03727894]
[1739698923110,5.1738,193.25,193.24,0.03727894]
[1739698924121,0.03629363,193.28,193.24,0.03727894]
[1739698924419,5.1736,193.26,193.24,0.03727894]
[1739698926122,0.03629363,193.28,193.24,0.03727894]
[1739698927520,0.03629363,193.28,193.27,7.42287142]
[1739698929125,0.03629363,193.28,193.27,12.59617142]
[1739698933231,9.363e-05,193.28,193.27,12.59617142]
[1739698933530,5.1712,193.36,193.32,5.1718]
[1739698934533,5.20753465,193.36,193.32,5.2081111]
[1739698934735,5.20753465,193.36,193.33,5.1717]
[1739698935035,0.03633465,193.36,193.33,5.1717]
[1739698935228,0.03633465,193.36,193.32,5.2082111]
[1739698935633,0.03633465,193.36,193.32,0.0363111]
[1739698935932,0.03633465,193.36,193.33,12.59457142]
[1739698937436,0.03633465,193.36,193.33,7.42287142]
[1739698938140,0.03633465,193.36,193.33,12.59447142]
[1739698939734,5.20733465,193.36,193.33,12.59447142]
[1739698940943,5.20733465,193.36,193.33,7.42287142]
[1739698941742,5.20733465,193.36,193.33,12.59447142]
[1739698941944,0.03633465,193.36,193.33,12.59447142]
[1739698942445,0.03633465,193.36,193.35,12.59407142]
[1739698953953,5.169,193.44,193.4,5.1696]
[1739698954151,0.1858,193.46,193.41,7.42287142]
[1739698955150,0.03829036,193.45,193.42,0.03876281]
[1739698955555,5.169,193.44,193.42,0.03876281]
[1739698955854,0.03829036,193.45,193.42,0.03876281]
[1739698956254,5.1688,193.44,193.42,0.03876281]
[1739698957855,5.169,193.43,193.42,0.03876281]
[1739698958156,12.59187142,193.43,193.42,0.03876281]
[1739698958457,12.59187142,193.43,193.42,6.281e-05]
[1739698971477,7.42287142,193.43,193.35,7.42287142]
[1739698972579,0.03380157,193.41,193.37,0.03923212]
[1739698973271,5.1704,193.38,193.37,0.03923212]
[1739698983076,5.1704,193.38,193.37,3.212e-05]
[1739698985780,7.42287142,193.39,193.27,7.42287142]
[1739698985980,7.42287142,193.33,193.27,7.42287142]
[1739698986889,0.03964075,193.32,193.28,0.03609016]
[1739698987082,5.1728,193.29,193.28,0.03609016]
[1739698990189,5.1726,193.3,193.28,0.03609016]
[1739698990693,0.03964075,193.32,193.28,0.03609016]
[1739698991490,5.1727,193.3,193.28,0.03609016]
[1739698993990,5.1728,193.29,193.28,0.03609016]
[1739699000191,12.59567142,193.29,193.28,9.016e-05]
[1739699005096,7.42287142,193.29,193.17,9.05077142]
[1739699005297,5.1751,193.21,193.17,14.22667142]
[1739699005793,5.1752,193.2,193.17,14.22667142]
[1739699006296,5.21363773,193.2,193.17,14.26629871]
[1739699007090,0.03843773,193.2,193.17,1.66752729]
[1739699007296,5.1755,193.19,193.17,1.66752729]
[1739699009293,5.1755,193.19,193.17,0.03962729]
[1739699009498,0.03843773,193.2,193.17,0.03962729]
[1739699009799,5.21383773,193.2,193.17,0.03962729]
[1739699010592,5.1755,193.19,193.17,0.03962729]
[1739699010795,0.03843773,193.2,193.17,0.03962729]
[1739699011298,5.1757,193.19,193.17,0.03962729]
[1739699013599,0.03843773,193.2,193.17,0.03962729]
[1739699014502,5.1755,193.19,193.17,0.03962729]
[1739699016799,0.03843773,193.2,193.17,0.03962729]
[1739699017001,5.1757,193.18,193.17,0.03962729]
[1739699031113,0.03843773,193.2,193.17,0.03962729]
[1739699031411,0.03843773,193.2,193.17,7.46249871]
[1739699033011,0.03843773,193.2,193.18,5.1757]
[1739699035910,0.03843773,193.2,193.17,7.46249871]
[1739699036115,0.03843773,193.2,193.17,12.63839871]
[1739699036316,0.03843773,193.2,193.17,7.46249871]
[1739699036712,5.1757,193.19,193.17,0.03962729]
[1739699036912,0.03843773,193.2,193.17,0.03962729]
[1739699037710,5.1757,193.18,193.17,0.03962729]
[1739699046015,0.03843773,193.2,193.17,0.03962729]
[1739699046318,5.1757,193.18,193.17,0.03962729]
[1739699058720,5.1755,193.19,193.17,0.03962729]
[1739699059226,0.03843773,193.2,193.17,0.03962729]
[1739699059524,5.1757,193.18,193.17,0.03962729]
[1739699062017,5.1755,193.19,193.17,0.03962729]
[1739699063221,0.03843773,193.2,193.17,0.03962729]
[1739699063620,0.03843773,193.2,193.17,7.46249871]
[1739699064018,0.03843773,193.2,193.17,12.63819871]
[1739699064916,0.03843773,193.2,193.18,5.1757]
[1739699065329,0.03843773,193.2,193.17,7.46249871]
[1739699065624,0.03843773,193.2,193.17,12.63829871]
[1739699069427,0.03843773,193.2,193.17,7.46249871]
[1739699069620,0.03843773,193.2,193.18,5.1755]
[1739699070024,0.03843773,193.2,193.17,7.46249871]
[1739699070830,0.03843773,193.2,193.19,5.1755]
[1739699071030,0.03843773,193.2,193.19,12.59837142]
[1739699071222,58.81837019,193.25,193.21,5.1749]
[1739699071427,58.81837019,193.25,193.22,7.42287142]
[1739699072326,58.81837019,193.25,193.22,7.45587849]
[1739699072631,58.85130848,193.25,193.22,7.45587849]
[1739699074328,5.1743,193.24,193.22,7.45587849]
[1739699077427,53.67740848,193.25,193.22,7.45587849]
[1739699077734,53.67740848,193.25,193.22,12.63047849]
[1739699078136,58.85140848,193.25,193.22,12.63047849]
[1739699078434,5.20693829,193.25,193.22,12.63047849]
[1739699079337,0.03293829,193.25,193.22,12.63047849]
[1739699079835,0.03293829,193.25,193.23,5.1743]
[1739699080639,0.03293829,193.25,193.23,5.1744]
[1739699081134,0.03293829,193.25,193.24,7.42287142]
[1739699082438,0.03293829,193.25,193.24,12.59697142]
[1739699082941,0.03293829,193.25,193.24,7.42287142]
[1739699084240,200.42287142,193.33,193.24,7.42287142]
[1739699084432,7.42287142,193.33,193.26,7.42287142]
[1739699085041,5.1727,193.3,193.26,12.59647142]
[1739699085441,5.20690276,193.3,193.26,12.63218865]
[1739699085641,5.20690276,193.3,193.26,7.45858865]
[1739699085642,5.1731,193.28,193.26,7.45858865]
[1739699086241,5.1728,193.29,193.26,7.45858865]
[1739699088544,0.03420276,193.3,193.27,5.1733]
[1739699089144,0.03420276,193.3,193.28,5.173]
[1739699089847,0.03420276,193.3,193.26,7.45858865]
[1739699091151,0.03420276,193.3,193.27,5.1731]
[1739699091646,0.03420276,193.3,193.26,7.45858865]
[1739699091647,0.03420276,193.3,193.28,5.173]
[1739699092450,0.03420276,193.3,193.28,7.42287142]
[1739699092644,53.61646973,193.34,193.28,7.42287142]
[1739699092847,53.61646973,193.34,193.3,7.42287142]
[1739699093849,53.65340968,193.34,193.3,7.45762939]
[1739699094051,58.82490968,193.34,193.3,12.62992939]
[1739699094247,53.65340968,193.34,193.3,12.62992939]
[1739699094548,53.65340968,193.34,193.3,7.45762939]
[1739699094953,5.1717,193.33,193.3,12.63002939]
[1739699095551,58.82490968,193.34,193.3,12.63002939]
[1739699096160,5.20843995,193.34,193.3,12.63002939]
[1739699098063,5.20843995,193.34,193.31,5.1722]
[1739699100466,0.03693995,193.34,193.3,7.45762939]
[1739699100766,0.03693995,193.34,193.32,5.1718]
[1739699101968,0.03693995,193.34,193.33,5.1717]
[1739699102868,7.42287142,193.43,193.32,7.42287142]
[1739699103067,0.1815,193.44,193.37,7.42287142]
[1739699103672,7.42287142,193.43,193.35,7.42287142]
[1739699103871,5.1705,193.38,193.35,7.42287142]
[1739699104172,0.03874906,193.41,193.37,0.03765306]
[1739699104367,5.1703,193.39,193.37,0.03765306]
[1739699105068,5.1704,193.38,193.37,0.03765306]
[1739699105469,0.03874906,193.41,193.37,0.03765306]
[1739699106374,5.1704,193.38,193.37,0.03765306]
[1739699110671,5.1704,193.38,193.37,7.46052448]
[1739699111169,0.03874906,193.41,193.37,7.46052448]
[1739699111366,0.03874906,193.41,193.39,7.42287142]
[1739699111973,5.20834906,193.41,193.39,7.42287142]
[1739699113076,0.03874906,193.41,193.39,12.59287142]
[1739699113373,0.03874906,193.41,193.39,7.42287142]
[1739699113771,0.03874906,193.41,193.39,12.59287142]
[1739699114277,0.03874906,193.41,193.4,5.1698]
[1739699117376,5.1686,193.45,193.39,7.42287142]
[1739699117576,5.1686,193.45,193.38,1.5955]
[1739699117577,5.1686,193.45,193.42,12.59207142]
[1739699118671,0.03458368,193.45,193.44,7.42287142]
[1739699122676,0.03458368,193.45,193.44,12.59167142]
[1739699122878,0.03458368,193.45,193.44,7.42287142]
[1739699123279,0.03458368,193.45,193.44,12.59167142]
[1739699124379,83.77573395,193.53,193.44,7.42287142]
[1739699124575,83.77573395,193.53,193.47,7.42287142]
[1739699125080,83.77573395,193.53,193.47,12.59077142]
[1739699125477,0.03742355,193.52,193.48,0.03839867]
[1739699125977,0.03742355,193.52,193.48,5.20599867]
[1739699126180,0.03742355,193.52,193.48,0.03839867]
[1739699126574,5.1669,193.51,193.48,5.20609867]
[1739699126979,5.1669,193.51,193.48,0.03839867]
[1739699128282,5.1674,193.49,193.48,0.03839867]
[1739699130082,12.59027142,193.49,193.48,9.867e-05]
[1739699130878,5.1697,193.41,193.37,7.42287142]
[1739699131182,7.42287142,193.44,193.37,7.42287142]
[1739699131382,7.42287142,193.44,193.35,7.42287142]
[1739699131588,5.1701,193.4,193.35,7.42287142]
[1739699131986,0.03282655,193.39,193.36,0.03457603]
[1739699133987,0.03282655,193.39,193.37,7.42287142]
[1739699139585,5.20292655,193.39,193.37,7.42287142]
[1739699139988,0.03282655,193.39,193.37,7.42287142]
[1739699140187,5.1706,193.37,193.36,0.03457603]
[1739699141485,5.1704,193.38,193.36,0.03457603]
[1739699141691,0.03282655,193.39,193.36,0.03457603]
[1739699142091,5.20312655,193.39,193.36,0.03457603]
[1739699142484,0.03282655,193.39,193.36,0.03457603]
[1739699144195,5.1706,193.37,193.36,0.03457603]
[1739699144398,5.1706,193.37,193.36,7.603e-05]
[1739699147396,198.1706,193.37,193.36,7.603e-05]
[1739699151491,0.03282655,193.39,193.36,7.603e-05]
[1739699152292,5.20312655,193.39,193.36,7.603e-05]
[1739699152898,0.03282655,193.39,193.36,7.603e-05]
[1739699153898,5.20322655,193.39,193.36,7.603e-05]
[1739699154200,0.03282655,193.39,193.36,7.603e-05]
[1739699154601,5.1706,193.38,193.36,7.603e-05]
[1739699156605,5.20302655,193.39,193.36,7.603e-05]
[1739699158207,5.1704,193.38,193.36,7.603e-05]
[1739699162899,0.03282655,193.39,193.36,7.603e-05]
[1739699163104,5.20302655,193.39,193.36,7.603e-05]
[1739699164806,0.03282655,193.39,193.37,5.1706]
[1739699165006,0.03282655,193.39,193.36,7.603e-05]
[1739699166103,0.03282655,193.39,193.36,5.17077603]
[1739699166304,0.03282655,193.39,193.36,7.603e-05]
[1739699167607,0.03282655,193.39,193.36,5.17087603]
[1739699167808,0.03282655,193.39,193.36,7.603e-05]
[1739699168010,0.03282655,193.39,193.38,5.1704]
[1739699168412,0.03282655,193.39,193.37,7.42287142]
[1739699168609,0.03282655,193.39,193.37,12.59327142]
[1739699169109,0.03282655,193.39,193.38,5.1704]
[1739699169303,5.1693,193.43,193.37,7.42287142]
[1739699169504,5.1693,193.43,193.39,7.42287142]
[1739699170113,5.1693,193.43,193.39,12.59277142]
[1739699170510,5.20388655,193.43,193.39,12.59277142]
[1739699172414,5.20388655,193.43,193.39,7.42287142]
[1739699172611,5.20388655,193.43,193.4,5.1698]
[1739699173212,5.20388655,193.43,193.39,12.59287142]
[1739699174708,0.03458655,193.43,193.39,7.42287142]
[1739699174916,0.03458655,193.43,193.41,5.1694]
[1739699175212,0.03458655,193.43,193.41,7.42287142]
[1739699176214,0.03458655,193.43,193.42,5.1693]
[1739699177216,0.03458655,193.43,193.41,12.59237142]
[1739699177713,0.03458655,193.43,193.41,7.42287142]
[1739699178414,0.03458655,193.43,193.4,0.03829871]
[1739699179315,5.1694,193.42,193.4,0.03829871]
[1739699179520,0.03458655,193.43,193.4,0.03829871]
[1739699180218,5.1696,193.41,193.4,0.03829871]
[1739699182719,5.1696,193.41,193.4,9.871e-05]
[1739699184910,7.42287142,193.42,193.31,1.6523]
[1739699185121,7.42287142,193.36,193.31,1.6523]
[1739699185824,7.42287142,193.34,193.27,7.42287142]
[1739699186020,7.42287142,193.34,193.32,0.03910501]
[1739699186517,5.1726,193.3,193.25,12.59647142]
[1739699186715,7.42287142,193.34,193.25,12.59647142]
[1739699186716,7.42287142,193.34,193.31,0.03285386]
[1739699186918,7.42287142,193.34,193.25,7.42287142]
[1739699187118,7.45990533,193.34,193.25,7.42287142]
[1739699187318,7.45990533,193.34,193.28,0.03913986]
[1739699188125,5.1727,193.3,193.28,0.03913986]
[1739699188320,7.45990533,193.34,193.28,0.03913986]
[1739699188619,5.1723,193.31,193.28,0.03913986]
[1739699189215,5.20863391,193.34,193.29,7.42287142]
[1739699189723,5.20863391,193.34,193.29,12.59547142]
[1739699189724,5.20853391,193.34,193.29,12.59547142]
[1739699190120,5.20853391,193.34,193.31,7.42287142]
[1739699190121,0.03703391,193.34,193.31,7.42287142]
[1739699190323,0.03703391,193.34,193.33,7.42287142]
[1739699191525,5.20863391,193.34,193.31,7.42287142]
[1739699194227,0.03703391,193.34,193.29,7.42287142]
[1739699194427,7.45990533,193.34,193.28,0.03913986]
[1739699194829,5.1728,193.29,193.28,0.03913986]
[1739699197833,5.1728,193.29,193.28,3.986e-05]
[1739699204130,7.42287142,193.32,193.28,3.986e-05]
[1739699204432,5.1723,193.31,193.28,3.986e-05]
[1739699204835,5.1726,193.3,193.28,3.986e-05]
[1739699205336,5.1728,193.29,193.28,3.986e-05]
[1739699220346,193.0,193.33,193.28,3.986e-05]
[1739699220545,5.1725,193.3,193.28,3.986e-05]
[1739699221846,193.0,193.33,193.28,3.986e-05]
[1739699222052,5.1728,193.29,193.28,3.986e-05]
[1739699227847,5.1755,193.19,193.13,64.91036762]
[1739699228050,7.42287142,193.22,193.14,10.52764829]
[1739699228649,5.1757,193.19,193.14,10.52764829]
[1739699229151,0.03759518,193.18,193.15,7.46111386]
[1739699229349,5.21329518,193.18,193.15,7.46111386]
[1739699229553,0.03759518,193.18,193.15,7.46111386]
[1739699231154,5.21329518,193.18,193.15,7.46111386]
[1739699232256,5.176,193.17,193.15,7.46111386]
[1739699232556,0.03759518,193.18,193.15,7.46111386]
[1739699232756,5.21349518,193.18,193.15,7.46111386]
[1739699233050,0.03759518,193.18,193.15,7.46111386]
[1739699233255,5.1762,193.17,193.15,7.46111386]
[1739699233455,0.03759518,193.18,193.15,7.46111386]
[1739699234254,5.1762,193.17,193.15,7.46111386]
[1739699234454,0.03759518,193.18,193.15,7.46111386]
[1739699236054,5.1763,193.16,193.15,7.46111386]
[1739699236258,5.1763,193.16,193.15,0.03824244]
[1739699239162,7.4604666,193.18,193.15,0.03824244]
[1739699240561,5.1762,193.17,193.15,0.03824244]
[1739699245265,5.1763,193.16,193.15,0.03824244]
[1739699246068,5.1762,193.17,193.15,0.03824244]
[1739699246568,7.4604666,193.18,193.15,0.03824244]
[1739699247067,5.176,193.17,193.15,0.03824244]
[1739699249066,7.4604666,193.18,193.15,0.03824244]
[1739699249368,5.1763,193.16,193.15,0.03824244]
[1739699253573,7.4604666,193.18,193.15,0.03824244]
[1739699254274,5.1763,193.16,193.15,0.03824244]
[1739699287807,7.4604666,193.18,193.15,0.03824244]
[1739699287808,5.176,193.17,193.15,0.03824244]
[1739699288004,0.03759518,193.18,193.15,7.46111386]
[1739699289608,0.03759518,193.18,193.16,5.1762]
[1739699294112,0.03759518,193.18,193.15,12.63761386]
[1739699295211,0.03759518,193.18,193.15,7.46111386]
[1739699295415,0.03759518,193.18,193.16,5.1762]
[1739699314534,0.03759518,193.18,193.15,7.46111386]
[1739699314738,0.03759518,193.18,193.17,5.176]
[1739699317738,0.03759518,193.18,193.17,12.59887142]
[1739699323040,0.03759518,193.18,193.17,7.42287142]
[1739699323240,0.03759518,193.18,193.16,5.1762]
[1739699327145,0.03759518,193.18,193.16,5.1763]
[1739699327442,0.03759518,193.18,193.15,7.46111386]
[1739699329045,0.03759518,193.18,193.17,5.176]
[1739699332846,0.03759518,193.18,193.16,5.1762]
[1739699333048,0.03759518,193.18,193.15,7.46111386]
[1739699334058,0.03759518,193.18,193.17,5.176]
[1739699350757,0.03759518,193.18,193.17,12.59887142]
[1739699351657,0.03759518,193.18,193.17,5.176]
[1739699369375,0.03759518,193.18,193.15,0.03824244]
[1739699369574,5.1763,193.16,193.15,0.03824244]
[1739699369777,12.59917142,193.16,193.15,0.03824244]
[1739699373579,12.6363666,193.18,193.15,0.03824244]
[1739699373982,0.03759518,193.18,193.15,0.03824244]
[1739699374576,0.03759518,193.18,193.15,7.46111386]
[1739699374978,0.03759518,193.18,193.16,5.1761]
[1739699375177,0.03759518,193.18,193.15,7.46111386]
[1739699376381,0.03759518,193.18,193.16,5.1763]
[1739699384280,0.03759518,193.18,193.17,12.59887142]
[1739699391887,0.03759518,193.18,193.17,7.42287142]
[1739699394999,0.03759518,193.18,193.15,0.03824244]
[1739699396204,5.1763,193.16,193.15,0.03824244]
[1739699400607,5.1776,193.12,193.09,7.42287142]
[1739699401806,5.21462361,193.12,193.09,12.63579811]
[1739699402006,0.03702361,193.12,193.09,7.45769811]
[1739699402504,0.03702361,193.12,193.1,5.1779]
[1739699403802,0.03702361,193.12,193.11,7.42287142]
[1739699404008,7.42287142,193.22,193.11,7.42287142]
[1739699404213,7.42287142,193.22,193.07,54.1831089]
[1739699404214,7.42287142,193.22,193.15,7.42287142]
[1739699404406,5.1757,193.19,193.15,12.59927142]
[1739699405208,5.20831182,193.19,193.15,12.63296238]
[1739699405807,0.03261182,193.19,193.16,5.1762]
[1739699407009,0.03261182,193.19,193.15,7.45656238]
[1739699407210,0.03261182,193.19,193.15,12.63306238]
[1739699407610,5.20811182,193.19,193.15,12.63306238]
[1739699409209,5.1757,193.18,193.15,12.63306238]
[1739699413609,5.176,193.17,193.15,7.45656238]
[1739699416110,5.1763,193.16,193.15,0.03369096]
[1739699417214,12.59917142,193.16,193.15,0.03369096]
[1739699418405,12.59917142,193.16,193.15,9.096e-05]
[1739699430619,5.1763,193.16,193.15,9.096e-05]
[1739699433318,0.03261182,193.19,193.15,9.096e-05]
[1739699433525,0.03261182,193.19,193.17,7.42287142]
[1739699438328,0.03261182,193.19,193.17,12.59877142]
[1739699438827,0.03261182,193.19,193.17,7.42287142]
[1739699441324,0.03261182,193.19,193.17,12.59867142]
[1739699442134,0.03261182,193.19,193.17,7.42287142]
[1739699442933,0.03261182,193.19,193.17,12.59887142]
[1739699447430,0.03261182,193.19,193.18,5.1757]
[1739699448332,0.03261182,193.19,193.17,12.59877142]
[1739699451929,0.03261182,193.19,193.18,5.1757]
[1739699458033,0.03261182,193.19,193.16,3.0457]
[1739699458532,0.03261182,193.19,193.17,5.1758]
[1739699461133,0.03261182,193.19,193.16,3.0457]
[1739699461339,0.03261182,193.19,193.18,5.1757]
[1739699465138,5.1745,193.23,193.17,7.42287142]
[1739699465736,5.1747,193.22,193.19,5.1752]
[1739699466340,5.20887134,193.22,193.19,5.21169186]
[1739699470149,0.03417134,193.22,193.2,5.175]
[1739699470549,0.03417134,193.22,193.19,7.45936328]
[1739699471252,0.03417134,193.22,193.19,12.63476328]
[1739699471948,5.20887134,193.22,193.19,12.63476328]
[1739699472248,0.03417134,193.22,193.19,12.63476328]
[1739699474040,0.03417134,193.22,193.19,5.21189186]
[1739699480554,0.03417134,193.22,193.2,5.1752]
[1739699481657,0.03417134,193.22,193.19,7.45936328]
[1739699482159,0.03417134,193.22,193.21,5.1749]
[1739699483254,0.03417134,193.22,193.21,12.59777142]
[1739699483653,7.42287142,193.3,193.25,5.1738]
[1739699483855,7.42287142,193.3,193.21,7.42287142]